[Event "Tirnavia Reti Memorial-IM 2022"]
[Site "Trnava"]
[Date "2022.08.11"]
[Round "2.7"]
[White "Konyves, Almos"]
[Black "Svana, Peter"]
[Result "0-1"]
[ECO "A31"]
[WhiteElo "2229"]
[BlackElo "2280"]
[Annotator "RC"]
[PlyCount "76"]
[EventDate "2022.08.10"]
[EventType "tourn"]
[EventCountry "SVK"]
[SourceTitle "playchess.com"]
[Source "ChessBase"]
[SourceQuality "1"]
[TimeControl "40/5400+30:1800+30"]

1. d4 {[%emt 0:00:47]} Nf6 {[%emt 0:00:23]} 2. c4 {[%emt 0:00:06]} c5 {[%emt 0:00:05]} 3. Nf3 {[%emt 0:00:41]} cxd4 {[%emt 0:00:05]} 4. Nxd4 {[%emt 0:00:04]} e5 {[%emt 0:00:06]} 5. Nb5 {[%emt 0:00:08]} d5 {[%emt 0:00:05]} 6. cxd5 {[%emt 0:00:04]} Bc5 {[%emt 0:00:05]} 7. N5c3 {[%emt 0:00:03]} O-O {[%emt 0:04:19]} 8. g3 {[%emt 0:09:58]} e4 {[%emt 0:01:10]} 9. e3 {[%emt 0:07:50]} Bf5 {[%emt 0:08:39]} 10. Bg2 {[%emt 0:05:30]} Re8 {[%emt 0:00:24]} 11. a3 {[%emt 0:11:15]} Nbd7 {[%emt 0:01:29]} 12. Nd2 {[%emt 0:00:12]} Rc8 {[%emt 0:01:04]} 13. O-O {[%emt 0:27:21]} h5 {[%emt 0:06:12]} 14. b4 {[%emt 0:05:00]} Bd6 {[%emt 0:01:45]} 15. Bb2 {[%emt 0:03:11]} h4 {[%emt 0:00:47]} 16. Re1 {[%emt 0:01:02]} Bb8 {[%emt 0:06:08]} 17. Qb3 {[%emt 0:04:48]} Ne5 {[%emt 0:06:24]} 18. Ncxe4 {[%emt 0:08:30]} Nxe4 {[%emt 0:00:37]} 19. Nxe4 {[%emt 0:00:22]} Nc4 {[%emt 0:00:35]} 20. Nc5 {[%emt 0:00:55]} Nxb2 {[%emt 0:01:35]} 21. Qxb2 {[%emt 0:04:54]} Be5 {[%emt 0:00:57]} 22. Qa2 {[%emt 0:01:12]} b6 {[%emt 0:00:33]} 23. Nb3 {[%emt 0:02:58]} Rc2 {[%emt 0:00:40]} 24. Qb1 {[%emt 0:01:22]} Qf6 {[%emt 0:02:00]} 25. Ra2 {[%emt 0:00:47]} Rec8 {[%emt 0:05:33]} 26. Rxc2 {[%emt 0:03:40]} Rxc2 {[%emt 0:00:34]} 27. Rf1 {[%emt 0:00:39]} Rb2 {[%emt 0:01:02]} 28. Qd1 {[%emt 0:00:28]} Bc2 {[%emt 0:00:15]} 29. Qc1 {[%emt 0:00:36]} Bxb3 {[%emt 0:00:46]} 30. Qc8+ {[%emt 0:00:13]} Kh7 {[%emt 0:00:19]} 31. Be4+ {[%emt 0:00:20]} g6 {[%emt 0:00:30]} 32. Kg2 {[%emt 0:00:59]} Kg7 {[%emt 0:01:09]} 33. Bf3 {[%emt 0:00:20]} Rc2 {[%emt 0:02:42]} 34. Qg4 {[%emt 0:00:04]} Rd2 {[%emt 0:07:58]} 35. e4 {[%emt 0:00:09]} Bd4 {[%emt 0:01:03]} 36. Be2 {[%emt 0:00:19]} Bc2 {[%emt 0:01:32]} 37. gxh4 {[%emt 0:01:33]} Qe5 {[%emt 0:01:34]} 38. d6 {[%emt 0:00:03]} Bxe4+ {[%emt 0:01:28]} 0-1

[Event "Tirnavia Reti Memorial-IM 2022"]
[Site "Trnava"]
[Date "2022.08.11"]
[Round "2.8"]
[White "Skreko, Igor"]
[Black "Bures, Jaroslav"]
[Result "0-1"]
[ECO "E71"]
[WhiteElo "2193"]
[BlackElo "2416"]
[Annotator "RC"]
[PlyCount "82"]
[EventDate "2022.08.10"]
[EventType "tourn"]
[EventCountry "SVK"]
[SourceTitle "playchess.com"]
[Source "ChessBase"]
[SourceQuality "1"]
[TimeControl "40/5400+30:1800+30"]

1. d4 {[%emt 0:00:02]} Nf6 {[%emt 0:01:56]} 2. c4 {[%emt 0:00:04]} g6 {[%emt 0:01:08]} 3. Nc3 {[%emt 0:00:05]} Bg7 {[%emt 0:00:05]} 4. e4 {[%emt 0:00:08]} d6 {[%emt 0:00:01]} 5. h3 {[%emt 0:00:10]} e5 {[%emt 0:02:27]} 6. dxe5 {[%emt 0:03:29]} dxe5 {[%emt 0:00:03]} 7. Qxd8+ {[%emt 0:00:23]} Kxd8 {[%emt 0:00:02]} 8. Bg5 {[%emt 0:00:56]} h6 {[%emt 0:03:37]} 9. O-O-O+ {[%emt 0:03:18]} Nbd7 {[%emt 0:00:01]} 10. Bh4 {[%emt 0:01:08]} c6 {[%emt 0:03:37]} 11. Nf3 {[%emt 0:06:27]} Kc7 {[%emt 0:00:01]} 12. g4 {[%emt 0:00:11]} h5 {[%emt 0:03:58]} 13. g5 {[%emt 0:08:11]} Nh7 {[%emt 0:00:01]} 14. Bg3 {[%emt 0:02:53]} Re8 {[%emt 0:02:32]} 15. Na4 {[%emt 0:08:37]} Nhf8 {[%emt 0:00:30]} 16. c5 {[%emt 0:00:30]} b5 {[%emt 0:04:19]} 17. cxb6+ {[%emt 0:00:33]} axb6 {[%emt 0:00:30]} 18. Nc3 {[%emt 0:00:30]} Ne6 {[%emt 0:00:30]} 19. Bc4 {[%emt 0:01:47]} Ba6 {[%emt 0:03:30]} 20. Bb3 {[%emt 0:03:22]} Re7 {[%emt 0:00:30]} 21. Kb1 {[%emt 0:00:30]} Nf4 {[%emt 0:01:28]} 22. Rd2 {[%emt 0:11:19]} Nc5 {[%emt 0:03:45]} 23. Bc2 {[%emt 0:05:11]} Rd8 {[%emt 0:00:30]} 24. Rhd1 {[%emt 0:00:30]} Rxd2 {[%emt 0:00:30]} 25. Rxd2 {[%emt 0:01:25]} Nxh3 {[%emt 0:00:04]} 26. b4 {[%emt 0:02:02]} Nd7 {[%emt 0:06:33]} 27. b5 {[%emt 0:05:28]} Bxb5 {[%emt 0:00:30]} 28. Nxb5+ {[%emt 0:00:30]} cxb5 {[%emt 0:00:30]} 29. Rd5 {[%emt 0:00:30]} Nf4 {[%emt 0:00:30]} 30. Bxf4 {[%emt 0:05:54]} exf4 {[%emt 0:00:48]} 31. Rxb5 {[%emt 0:04:52]} Ne5 {[%emt 0:11:48]} 32. Nh4 {[%emt 0:00:30]} f6 {[%emt 0:00:30]} 33. gxf6 {[%emt 0:02:34]} Bxf6 {[%emt 0:00:02]} 34. Ng2 {[%emt 0:00:41]} g5 {[%emt 0:00:07]} 35. Bd1 {[%emt 0:04:45]} h4 {[%emt 0:00:59]} 36. Ne1 {[%emt 0:00:46]} g4 {[%emt 0:02:39]} 37. Be2 {[%emt 0:03:13]} h3 {[%emt 0:01:02]} 38. Bf1 {[%emt 0:00:11]} f3 {[%emt 0:01:00]} 39. Nxf3 {[%emt 0:05:30]} Nxf3 {[%emt 0:47:27]} 40. Rf5 {[%emt 0:11:25]} Nd2+ {[%emt 0:00:30]} 41. Kc2 {[%emt 0:30:30]} Nxf1 {[%emt 0:30:30]} 0-1

[Event "Tirnavia Reti Memorial-IM 2022"]
[Site "Trnava"]
[Date "2022.08.11"]
[Round "2.9"]
[White "Petran, Peter"]
[Black "Lanc, Alois"]
[Result "1/2-1/2"]
[ECO "A36"]
[WhiteElo "2234"]
[BlackElo "2263"]
[Annotator "RC"]
[PlyCount "31"]
[EventDate "2022.08.10"]
[EventType "tourn"]
[EventCountry "SVK"]
[SourceTitle "playchess.com"]
[Source "ChessBase"]
[SourceQuality "1"]
[TimeControl "40/5400+30:1800+30"]

1. g3 {[%emt 0:00:03]} c5 {[%emt 0:02:29]} 2. Bg2 {[%emt 0:00:13]} Nc6 {[%emt 0:00:04]} 3. c4 {[%emt 0:02:21]} g6 {[%emt 0:00:10]} 4. Nc3 {[%emt 0:01:06]} Bg7 {[%emt 0:00:15]} 5. a3 {[%emt 0:00:31]} e6 {[%emt 0:01:18]} 6. b4 {[%emt 0:00:14]} d6 {[%emt 0:03:49]} 7. Rb1 {[%emt 0:06:04]} Nge7 {[%emt 0:06:38]} 8. Nf3 {[%emt 0:07:49]} O-O {[%emt 0:01:59]} 9. O-O {[%emt 0:00:08]} Rb8 {[%emt 0:04:03]} 10. e3 {[%emt 0:07:40]} b6 {[%emt 0:02:14]} 11. Qb3 {[%emt 0:08:17]} h6 {[%emt 0:11:37]} 12. Bb2 {[%emt 0:01:20]} e5 {[%emt 0:04:09]} 13. d3 {[%emt 0:04:05]} Be6 {[%emt 0:09:00]} 14. Qa4 {[%emt 0:07:41]} Qd7 {[%emt 0:09:03]} 15. Rfe1 {[%emt 0:04:29]} Rbd8 {[%emt 0:08:52]} 16. e4 {[%emt 0:06:46]} 1/2-1/2

[Event "Tirnavia Reti Memorial-IM 2022"]
[Site "Trnava"]
[Date "2022.08.11"]
[Round "2.10"]
[White "Skreno, Vladimir"]
[Black "Straka, Jozef"]
[Result "0-1"]
[ECO "A46"]
[WhiteElo "2083"]
[BlackElo "2300"]
[Annotator "RC"]
[PlyCount "72"]
[EventDate "2022.08.10"]
[EventType "tourn"]
[EventCountry "SVK"]
[SourceTitle "playchess.com"]
[Source "ChessBase"]
[SourceQuality "1"]
[TimeControl "40/5400+30:1800+30"]

1. d4 {[%emt 0:00:05]} Nf6 {[%emt 0:00:09]} 2. Nf3 {[%emt 0:00:18]} e6 {[%emt 0:00:08]} 3. Bg5 {[%emt 0:00:47]} d6 {[%emt 0:00:27]} 4. c4 {[%emt 0:01:53]} h6 {[%emt 0:00:16]} 5. Bh4 {[%emt 0:00:57]} g5 {[%emt 0:00:33]} 6. Bg3 {[%emt 0:00:13]} Nh5 {[%emt 0:01:34]} 7. e3 {[%emt 0:03:13]} Bg7 {[%emt 0:00:43]} 8. Nfd2 {[%emt 0:05:50]} Nxg3 {[%emt 0:02:39]} 9. hxg3 {[%emt 0:00:02]} c5 {[%emt 0:08:37]} 10. Nb3 {[%emt 0:07:12]} Nc6 {[%emt 0:05:45]} 11. Nc3 {[%emt 0:02:21]} cxd4 {[%emt 0:00:18]} 12. exd4 {[%emt 0:04:40]} O-O {[%emt 0:03:07]} 13. Qd2 {[%emt 0:07:41]} e5 {[%emt 0:04:15]} 14. dxe5 {[%emt 0:10:29]} dxe5 {[%emt 0:00:24]} 15. Nd5 {[%emt 0:08:21]} Nd4 {[%emt 0:06:20]} 16. Nxd4 {[%emt 0:12:02]} exd4 {[%emt 0:00:14]} 17. Bd3 {[%emt 0:01:48]} Re8+ {[%emt 0:05:02]} 18. Kf1 {[%emt 0:00:17]} Be6 {[%emt 0:01:19]} 19. Nb4 {[%emt 0:04:07]} Rc8 {[%emt 0:02:55]} 20. Rc1 {[%emt 0:08:12]} Qa5 {[%emt 0:20:34]} 21. a3 {[%emt 0:00:30]} Rc5 {[%emt 0:01:05]} 22. Re1 {[%emt 0:07:19]} Rec8 {[%emt 0:02:24]} 23. Rxe6 {[%emt 0:00:16]} fxe6 {[%emt 0:00:08]} 24. Qe2 {[%emt 0:00:48]} Re5 {[%emt 0:02:59]} 25. Qh5 {[%emt 0:08:44]} b5 {[%emt 0:08:59]} 26. Qg6 {[%emt 0:03:09]} bxc4 {[%emt 0:00:02]} 27. Be4 {[%emt 0:00:26]} Rxe4 {[%emt 0:06:36]} 28. Qxe4 {[%emt 0:00:19]} Qf5 {[%emt 0:00:01]} 29. Qxf5 {[%emt 0:02:00]} exf5 {[%emt 0:00:01]} 30. Nd5 {[%emt 0:00:34]} Kf7 {[%emt 0:02:28]} 31. Ke2 {[%emt 0:00:29]} d3+ {[%emt 0:06:53]} 32. Kd2 {[%emt 0:00:11]} Bxb2 {[%emt 0:00:55]} 33. Rxh6 {[%emt 0:00:59]} c3+ {[%emt 0:00:28]} 34. Nxc3 {[%emt 0:00:17]} Bxc3+ {[%emt 0:00:39]} 35. Kxd3 {[%emt 0:00:05]} Bf6 {[%emt 0:00:31]} 36. Kd2 {[%emt 0:00:59]} Rh8 {[%emt 0:00:19]} 0-1

[Event "Tirnavia Reti Memorial-IM 2022"]
[Site "Trnava"]
[Date "2022.08.12"]
[Round "3.1"]
[White "Sahidi, Samir"]
[Black "Malinovsky, Karel"]
[Result "0-1"]
[ECO "D37"]
[WhiteElo "2462"]
[BlackElo "2463"]
[Annotator "TA"]
[PlyCount "152"]
[EventDate "2022.08.10"]
[EventType "tourn"]
[EventCountry "SVK"]
[SourceTitle "playchess.com"]
[Source "ChessBase"]
[SourceQuality "1"]
[TimeControl "40/5400+30:1800+30"]

{[%evp 13,152,17,2,8,22,8,14,5,11,0,0,19,14,0,0,0,0,0,0,0,0,0,0,0,0,0,0,0,0,0,0,0,0,0,0,0,0,0,0,0,0,0,0,0,0,0,0,-1,8,3,0,0,0,0,0,0,0,0,3,3,63,19,19,26,31,0,3,3,3,3,3,3,3,3,3,3,13,0,0,0,0,0,0,0,0,0,0,0,0,0,0,0,0,0,0,0,0,0,0,0,0,0,0,0,0,0,0,0,0,0,0,0,0,0,0,0,0,0,-8,-29979,-29980,-29980,-29981,-29981,-29982,-29982,-29983,-29984,-29985,-29985,-29986,-29986,-29987,-29987,-29988,-29988,-29989,-29989,-29990,-29990,-29991]} 1. d4 {[%emt 0:00:11]} d5 {[%emt 0:00:06]} 2. c4 {[%emt 0:00:14]} e6 {[%emt 0:00:07]} 3. Nc3 {[%emt 0:00:35]} Be7 {[%emt 0:00:24]} 4. Bf4 {[%emt 0:02:01]} Nf6 {[%emt 0:00:56]} 5. e3 {[%emt 0:00:48]} O-O {[%emt 0:01:07]} 6. Nf3 {[%emt 0:01:46]} b6 {[%emt 0:00:54]} 7. cxd5 {[%emt 0:03:38]} Nxd5 {[%emt 0:01:09]} 8. Nxd5 {[%emt 0:01:39] D37: Queen's Gambit Declined: 5 Bf4.} Qxd5 {[%emt 0:01:15]} 9. Bxc7 {[%emt 0:03:44]} Bb4+ {[%emt 0:01:42]} 10. Nd2 {[%emt 0:00:08] The position is equal.} Nc6 {[%emt 0:01:03][%cal Bb8c6,Bc6a5,Ba5b3][%mdl 32]} 11. a3 {[%emt 0:07:08]} Bxd2+ {[%emt 0:02:19]} 12. Qxd2 {[%emt 0:00:21]} Na5 {[%emt 0:01:52] [#] Hoping for ...Nb3.} 13. Qc3 $146 {[%emt 0:10:24]} ({Predecessor:} 13. Rd1 Bb7 14. Bg3 Rfc8 15. f3 Qb3 16. Bd3 Nc4 17. Bxc4 Rxc4 18. O-O Rc2 19. Qb4 Qxb4 20. axb4 Rxb2 {1-0 (25) Sarana,A (2649)-Bocharov,D (2517) Sochi 2021}) 13... Bb7 {[%emt 0:09:30]} 14. b4 $1 {[%emt 0:02:24]} Nb3 {[%emt 0:09:38]} 15. Rb1 {[%emt 0:03:22]} Rac8 {[%emt 0:05:05][%cal Ob3d4]} 16. Qxb3 {[%emt 0:12:03]} ({Much worse is} 16. Rxb3 Qd7 17. Qb2 Qxc7 $15) 16... Qxb3 {[%emt 0:02:31]} 17. Rxb3 {[%emt 0:00:15]} Rxc7 {[%emt 0:00:06]} 18. Kd2 {[%emt 0:01:29] Prevents Rc1.} Rfc8 {[%emt 0:01:05] Strongly threatening ...Rc2+.} 19. Bd3 {[%emt 0:00:08] Inhibits Rc2+.} Bxg2 {[%emt 0:00:49]} 20. Rg1 {[%emt 0:02:59]} Bb7 {[%emt 0:01:37]} 21. a4 {[%emt 0:01:44]} Kf8 {[%emt 0:06:46]} 22. a5 {[%emt 0:02:01]} g6 {[%emt 0:05:38]} 23. Ra1 {[%emt 0:05:51]} Ke7 {[%emt 0:04:33]} 24. axb6 {[%emt 0:03:18]} axb6 {[%emt 0:00:07]} 25. Ra7 {[%emt 0:03:20]} Kd6 {[%emt 0:06:08]} 26. e4 {[%emt 0:04:15]} e5 {[%emt 0:14:50]} 27. d5 {[%emt 0:04:06]} f5 {[%emt 0:01:04]} 28. f3 {[%emt 0:01:43]} fxe4 {[%emt 0:00:30]} 29. fxe4 {[%emt 0:00:22]} Rf8 {[%emt 0:00:24]} 30. Ke3 {[%emt 0:01:50] Against Rf2} Bxd5 {[%emt 0:07:19]} 31. Rxc7 {[%emt 0:00:42]} Bxb3 {[%emt 0:00:06]} 32. Rxh7 $11 {[%emt 0:00:50][%mdl 4096] Endgame KRB-KRB} Be6 {[%emt 0:04:23]} 33. Bb5 {[%emt 0:02:59]} Rf7 {[%emt 0:07:46]} 34. Rh6 {[%emt 0:01:08]} Ke7 {[%emt 0:01:01]} 35. Bc6 {[%emt 0:01:58]} Rg7 {[%emt 0:01:47]} 36. Bd5 {[%emt 0:01:05]} Bd7 {[%emt 0:00:50]} (36... Kd6 $11) 37. Rh8 {[%emt 0:01:31]} g5 {[%emt 0:01:21]} 38. Rh6 {[%emt 0:00:32]} b5 {[%emt 0:00:28]} 39. Bc6 {[%emt 0:03:41]} g4 {[%emt 0:01:00]} 40. Bxd7 {[%emt 0:03:09]} Kxd7 {[%emt 0:00:06] KR-KR} 41. Rb6 {[%emt 0:30:21] White threatens Rb7+ and mate.} Rf7 {[%emt 0:08:15]} 42. Rxb5 {[%emt 0:00:00] Intending Rb7+ and mate.} Rf3+ {[%emt 0:00:47]} 43. Ke2 {[%emt 0:00:00]} Ke6 {[%emt 0:00:45]} 44. Rb6+ {[%emt 0:00:00]} Kf7 {[%emt 0:02:05]} 45. Rb7+ {[%emt 0:00:00]} Kf6 {[%emt 0:05:08]} 46. Rb8 {[%emt 0:00:00] Rf8+ would kill now.} Rb3 {[%emt 0:06:30]} 47. Kd2 {[%emt 0:00:16]} Kg5 {[%emt 0:00:46]} 48. b5 {[%emt 0:03:49]} Kf4 {[%emt 0:01:53]} 49. b6 {[%emt 0:04:15]} Kxe4 {[%emt 0:00:55]} 50. b7 {[%emt 0:02:14]} Rd3+ {[%emt 0:02:21]} 51. Ke2 {[%emt 0:00:37]} Rd7 {[%emt 0:00:06]} ({Much less strong is} 51... Rb3 52. Kf2 $16) 52. Kf2 {[%emt 0:01:23]} Rf7+ {[%emt 0:00:50]} 53. Kg3 {[%emt 0:00:38]} Rg7 {[%emt 0:00:30]} 54. Kh4 {[%emt 0:01:22]} Ke3 $1 {[%emt 0:01:52]} 55. Kg3 {[%emt 0:00:37]} e4 {[%emt 0:02:19]} 56. Kg2 {[%emt 0:00:05]} Rd7 {[%emt 0:00:29]} 57. Kg3 {[%emt 0:00:17]} Rg7 {[%emt 0:00:27]} 58. Kh4 {[%emt 0:00:51]} Ke2 {[%emt 0:00:36]} 59. Kh5 {[%emt 0:00:33]} e3 {[%emt 0:00:28]} 60. Kh6 {[%emt 0:00:36]} Rd7 {[%emt 0:00:09]} 61. Kg5 {[%emt 0:00:49]} Kd2 {[%emt 0:00:31] White must now prevent ...e2.} 62. Kxg4 {[%emt 0:00:37]} e2 {[%emt 0:00:06]} 63. Re8 {[%emt 0:00:03]} Rxb7 {[%emt 0:00:09]} 64. Rd8+ {[%emt 0:00:43]} Ke3 {[%emt 0:00:44]} 65. Re8+ {[%emt 0:00:06]} Kf2 {[%emt 0:00:06] ( -> ...Rb4+)} 66. Rf8+ $2 {[%emt 0:00:24][%mdl 8192] This move loses the game for White.} (66. h4 $11) 66... Kg2 {[%emt 0:00:19] Black mates.} 67. Re8 {[%emt 0:00:08]} Rb4+ {[%emt 0:00:51]} 68. Kg5 {[%emt 0:00:24]} Kf3 {[%emt 0:00:25]} 69. Rxe2 {[%emt 0:01:57]} Kxe2 {[%emt 0:00:06] KR-KP} 70. h4 {[%emt 0:00:03]} Kf3 $1 {[%emt 0:00:23]} 71. h5 {[%emt 0:00:06]} Rb5+ $1 {[%emt 0:00:36]} 72. Kg6 {[%emt 0:00:04]} Kg4 {[%emt 0:00:00]} 73. h6 {[%emt 0:00:04]} Rb6+ {[%emt 0:00:00]} 74. Kg7 {[%emt 0:00:17]} Kg5 {[%emt 0:00:03]} 75. h7 {[%emt 0:00:09] [#]} Rb7+ $1 {[%emt 0:00:05]} 76. Kg8 {[%emt 0:00:08] [#]} Kg6 $1 {[%emt 0:00:15] Weighted Error Value: White=0.03 (flawless) /Black=0.03 (flawless)} 0-1

[Event "Tirnavia Reti Memorial-IM 2022"]
[Site "Trnava"]
[Date "2022.08.12"]
[Round "3.2"]
[White "Jablonicky, Martin"]
[Black "Stevik, Patrik"]
[Result "0-1"]
[ECO "B06"]
[WhiteElo "2343"]
[BlackElo "2126"]
[Annotator "TA"]
[PlyCount "62"]
[EventDate "2022.08.10"]
[EventType "tourn"]
[EventCountry "SVK"]
[SourceTitle "playchess.com"]
[Source "ChessBase"]
[SourceQuality "1"]
[TimeControl "40/5400+30:1800+30"]

{[%evp 18,62,21,22,9,-12,-3,-50,-41,-76,-82,-115,-126,-120,-141,-164,-166,-166,-122,-111,-110,-98,-117,-65,-69,-118,-108,-217,-212,-285,-268,-252,-275,-425,-305,-366,-363,-703,-688,-995,-1004,-1397,-1391,-2011,-2009,-1921,-1876]} 1. e4 {[%emt 0:00:06]} g6 {[%emt 0:00:06]} 2. d4 {[%emt 0:00:05]} Bg7 {[%emt 0:00:04]} 3. Nc3 {[%emt 0:00:20]} d6 {[%emt 0:00:22]} 4. Be3 {[%emt 0:00:07]} a6 {[%emt 0:00:09]} 5. Qd2 {[%emt 0:00:17]} b5 {[%emt 0:00:16]} 6. f3 {[%emt 0:02:12]} Nd7 {[%emt 0:00:22]} 7. h4 {[%emt 0:00:08]} h5 {[%emt 0:00:14]} 8. Nh3 {[%emt 0:00:13]} Bb7 {[%emt 0:00:25]} 9. Ng5 {[%emt 0:00:07]} Ngf6 {[%emt 0:01:17]} 10. O-O-O {[%emt 0:11:17][%cal Oe4e5]} O-O {[%emt 0:02:41] B06: Modern Defence.} 11. a3 {[%emt 0:09:50][%cal Og2g4]} c5 $1 {[%emt 0:03:17] [#]} 12. Rg1 $146 {[%emt 0:10:33]} (12. Kb1 $11) ({Predecessor:} 12. Be2 Rc8 13. g4 b4 14. Nb1 cxd4 15. Bxd4 b3 16. c3 Qa5 17. gxh5 Nxh5 18. Bxg7 Kxg7 {0-1 (29) Dahl,T (2169)-Chatalbashev,B (2546) Ballerup 2017}) 12... Qc7 $15 {[%emt 0:04:53] Black is slightly better.} 13. g4 {[%emt 0:02:33]} b4 {[%emt 0:06:16]} 14. Nb1 {[%emt 0:00:01]} hxg4 {[%emt 0:18:44] ...cxd4 is the strong threat.} 15. h5 {[%emt 0:00:22]} Nxh5 {[%emt 0:03:21]} 16. axb4 {[%emt 0:03:22]} cxd4 {[%emt 0:02:42]} 17. Bxd4 {[%emt 0:00:39]} Bxd4 {[%emt 0:02:59]} 18. Qxd4 {[%emt 0:00:01]} Rac8 {[%emt 0:00:30][%csl Gc8][%cal Rc7c2] [#]} 19. Nc3 {[%emt 0:01:03]} g3 {[%emt 0:02:01]} 20. Bh3 {[%emt 0:03:42]} ({White should play} 20. f4 $17) 20... a5 $1 {[%emt 0:03:27]} 21. bxa5 {[%emt 0:16:37]} (21. b5 $1 $15) 21... Ra8 {[%emt 0:11:27]} 22. Bxd7 {[%emt 0:04:38]} (22. b4 $17) 22... Qxd7 $19 {[%emt 0:00:19]} 23. b4 {[%emt 0:00:46]} Rac8 {[%emt 0:01:42]} 24. Rh1 {[%emt 0:12:28]} e5 {[%emt 0:07:15]} (24... f6 25. Nh3 $17) 25. Qe3 {[%emt 0:01:50]} (25. Qd2 {keeps fighting.} f6 26. Nh3 (26. a6 $2 Bxa6 27. Nh3 Rf7 $19)) 25... Nf4 {[%emt 0:06:27][%cal Oc8c3] aiming for ...Rxc3!} 26. Kb2 {[%emt 0:00:01]} Rc4 {[%emt 0:00:27] Dancing on a razor blade.} 27. Qb6 {[%emt 0:00:10]} (27. Nh7 Qc7 28. Nxf8 (28. Nf6+ $2 Kg7 $19) 28... Rxb4+ 29. Ka1 Qxa5+ 30. Na2) 27... Rc6 {[%emt 0:01:51] Black is clearly winning.} ({Stronger than} 27... Qc8 28. Nh7 Rxc3 29. Qxd6 $11) 28. Qb5 {[%emt 0:00:35]} Qc7 {[%emt 0:02:27]} 29. Rxd6 {[%emt 0:05:46]} Qxd6 {[%emt 0:01:50]} 30. Qxb7 {[%emt 0:00:14] [#]} Rxc3 $1 {[%emt 0:01:11][%mdl 512]} 31. Kxc3 {[%emt 0:04:01]} g2 {[%emt 0:00:40] Weighted Error Value: White=0.96/Black=0.06 (flawless)} 0-1

[Event "Tirnavia Reti Memorial-IM 2022"]
[Site "Trnava"]
[Date "2022.08.12"]
[Round "3.3"]
[White "Velicka, Petr"]
[Black "Finek, Vaclav"]
[Result "1/2-1/2"]
[ECO "B38"]
[WhiteElo "2384"]
[BlackElo "2393"]
[Annotator "TA"]
[PlyCount "94"]
[EventDate "2022.08.10"]
[EventType "tourn"]
[EventCountry "SVK"]
[SourceTitle "playchess.com"]
[Source "ChessBase"]
[SourceQuality "1"]
[TimeControl "40/5400+30:1800+30"]

{[%evp 20,94,39,31,50,26,45,27,26,29,29,19,52,11,14,0,0,-13,-9,-45,-52,-38,-43,-45,0,-110,0,-20,-16,-73,-84,-77,-78,-74,-64,-59,-67,-81,-74,-106,-78,-123,-118,-109,-112,-152,-71,-76,-72,-76,-77,-78,-72,-80,-32,-37,0,-31,0,0,0,0,0,0,0,0,0,0,0,0,0,0,0,0,0,0,0]} 1. e4 {[%emt 0:00:08]} c5 {[%emt 0:00:06]} 2. Nf3 {[%emt 0:00:06]} g6 {[%emt 0:00:19]} 3. c4 {[%emt 0:00:42]} Bg7 {[%emt 0:00:18]} 4. d4 {[%emt 0:00:08]} cxd4 {[%emt 0:00:04]} 5. Nxd4 {[%emt 0:00:08]} Nc6 {[%emt 0:00:04]} 6. Be3 {[%emt 0:00:16]} Nf6 {[%emt 0:00:08]} 7. Nc3 {[%emt 0:00:06]} d6 {[%emt 0:00:06]} 8. Be2 {[%emt 0:00:39]} O-O {[%emt 0:00:07]} 9. O-O {[%emt 0:00:19]} Bd7 {[%emt 0:00:17]} 10. Kh1 {[%emt 0:03:17]} Nxd4 {[%emt 0:06:46]} 11. Bxd4 {[%emt 0:00:25]} Bc6 {[%emt 0:00:05] B38: Sicilian: Maroczy Bind with 5...Bg7 and 7...0-0.} 12. Qd3 {[%emt 0:00:11]} a5 {[%emt 0:02:24]} 13. b3 {[%emt 0:02:25]} Nd7 {[%emt 0:04:26] White has an edge.} 14. Bxg7 {[%emt 0:00:15]} Kxg7 {[%emt 0:00:10]} 15. f4 {[%emt 0:00:16] [#]} f6 $146 {[%emt 0:09:24]} ({Predecessor:} 15... Qb6 16. Rab1 Qc5 17. Bg4 Nf6 18. Bh3 e5 19. Nd5 Bxd5 20. exd5 Rae8 21. Rbe1 exf4 {0-1 (32) Horvath,D (2417)-Gallego Alcaraz,A (2502) Caleta 2019}) 16. Rad1 {[%emt 0:03:56]} Qb6 {[%emt 0:05:59]} 17. Bg4 {[%emt 0:08:28]} Nc5 {[%emt 0:03:23]} 18. Qe3 {[%emt 0:00:22]} a4 {[%emt 0:12:40]} 19. Rb1 {[%emt 0:08:21]} axb3 {[%emt 0:03:00]} 20. axb3 {[%emt 0:00:34]} Ra3 {[%emt 0:10:18]} 21. Bd1 {[%emt 0:13:42]} Qb4 {[%emt 0:06:08]} 22. Bc2 {[%emt 0:05:34]} (22. f5 $11) 22... e5 {[%emt 0:12:28]} (22... Nxb3 $17 23. Nd5 Bxd5 24. exd5 Qd2 25. Qxe7+ Rf7 26. Qxd6 Ra6 27. Qxa6 bxa6 28. Bxb3 Rb7) 23. fxe5 {[%emt 0:21:08]} dxe5 {[%emt 0:00:33][%cal Rc5b3]} 24. Ra1 {[%emt 0:00:39]} (24. Nd5 $11 Bxd5 25. cxd5) 24... Ne6 {[%emt 0:07:46]} (24... Nxb3 $2 25. Rxa3 Qxa3 26. Nb5 $18 (26. Nb1 Qb2 $16)) 25. Rxa3 {[%emt 0:05:23]} Qxa3 {[%emt 0:00:10]} 26. Nd5 {[%emt 0:00:44]} Nd4 {[%emt 0:01:39]} 27. Qc3 {[%emt 0:01:04]} Bxd5 {[%emt 0:01:50]} 28. exd5 {[%emt 0:05:51]} Ra8 {[%emt 0:02:30]} 29. Bd1 {[%emt 0:01:23]} b6 {[%emt 0:01:58][%cal Bb7b6,Bb6b5][%mdl 32]} 30. Qh3 {[%emt 0:00:53]} Qd6 {[%emt 0:00:41] Inhibits Qd7+.} 31. Qc3 {[%emt 0:04:48]} Ra7 {[%emt 0:02:31]} (31... b5 {seems wilder.} 32. g4 Ra2 33. g5 f5) 32. b4 {[%emt 0:04:10]} Rc7 {[%emt 0:00:05]} ({Black should play} 32... b5 {Threatens to win with ...bxc4.} 33. Bb3 bxc4 34. Bxc4 Rc7) 33. Bf3 $17 {[%emt 0:01:16]} Nxf3 {[%emt 0:03:06]} 34. Rxf3 {[%emt 0:00:12][%mdl 4096] Endgame KQR-KQR} b5 {[%emt 0:00:20]} 35. c5 {[%emt 0:00:13]} Qxd5 {[%emt 0:00:05]} 36. Rd3 {[%emt 0:00:11] Prevents Qd1+.} Qe4 {[%emt 0:01:09]} (36... Qe6 $17) 37. h3 $15 {[%emt 0:00:35]} h5 {[%emt 0:01:14]} 38. Rd6 {[%emt 0:04:16]} Ra7 {[%emt 0:02:22]} 39. Qd2 $1 {[%emt 0:04:32] The position is equal.} Ra1+ {[%emt 0:01:33]} 40. Kh2 {[%emt 0:00:07]} g5 {[%emt 0:01:20] aiming for ...Qb1.} 41. Rxf6 $1 {[%emt 0:05:36][%mdl 64] [#] Decoy} Kxf6 {[%emt 0:06:45]} 42. Qd8+ {[%emt 0:00:15]} Kf5 {[%emt 0:04:42]} 43. Qf8+ {[%emt 0:00:19]} Ke6 {[%emt 0:00:19]} (43... Kg6 $5 {[%cal Re4f4]} 44. Qg8+ Kh6 45. Qh8+ Qh7 46. Qf6+ Qg6 47. Qh8+ Qh7 48. Qf6+ Qg6 49. Qh8+ Qh7 $11) 44. Qd6+ {[%emt 0:00:15]} Kf7 {[%emt 0:00:24]} 45. Qd7+ {[%emt 0:00:11]} Kf6 {[%emt 0:00:44]} 46. Qd8+ {[%emt 0:00:40]} Kf7 {[%emt 0:00:31] [#] ( -> ...Qf4+)} 47. Qd7+ {[%emt 0:00:24]} Kf6 {[%emt 0:00:21] Weighted Error Value: White=0.16 (very precise) /Black=0.12 (very precise)} 1/2-1/2